Workbook

Sheet Sheet1
A1: 附件
A2: 遵义市2025年面向社会公开招聘大学生乡村医生事业单位工作人员总成绩及进入 下一个环节人员名单
A3: 序号 | B3: 姓名 | C3: 准考证号 | D3: 报考单位 | E3: 报考职位及代码 | F3: 笔试成绩 | G3: 面试成绩 | H3: 笔试面试折算后总成绩 | I3: 报考岗位总成绩排名 | J3: 是否进入体检环节 | K3: 备注
A4: 1 | B4: 宋桂林 | C4: 202530100614 | D4: 红花岗区巷口镇卫生院 | E4: 大学生村医202510103 | F4: 111.39 | G4: 86.58 | H4: =F4/1.5*0.6+G4*0.4 -> 79.19 | I4: 1 | J4: 是
A5: 2 | B5: 黄福平 | C5: 202530100312 | D5: 红花岗区巷口镇卫生院 | E5: 大学生村医202510103 | F5: 105.30 | G5: 81.86 | H5: 74.86 | I5: 2 | J5: 否
A6: 3 | B6: 王云菲 | C6: 202530100502 | D6: 红花岗区巷口镇卫生院 | E6: 大学生村医202510103 | F6: 100.91 | G6: 72.50 | H6: 69.36 | I6: 3 | J6: 否
A7: 4 | B7: 刘兰 | C7: 202530100706 | D7: 红花岗金鼎山镇卫生院 | E7: 大学生村医202510104 | F7: 103.34 | G7: 81.10 | H7: 73.78 | I7: 1 | J7: 是
A8: 5 | B8: 杨淼 | C8: 202530100719 | D8: 红花岗金鼎山镇卫生院 | E8: 大学生村医202510104 | F8: 101.22 | G8: 79.22 | H8: 72.18 | I8: 2 | J8: 否
A9: 6 | B9: 朱雨停 | C9: 202530100923 | D9: 红花岗金鼎山镇卫生院 | E9: 大学生村医202510104 | F9: 103.71 | G9: 74.02 | H9: 71.09 | I9: 3 | J9: 否
A10: 7 | B10: 周淋雨 | C10: 202530100421 | D10: 播州区三合镇中心卫生院 | E10: 大学生村医202510129 | F10: 114.81 | G10: 77.66 | H10: 76.99 | I10: 1 | J10: 是
A11: 8 | B11: 陈铠 | C11: 202530100313 | D11: 播州区三合镇中心卫生院 | E11: 大学生村医202510129 | F11: 104.56 | G11: 84.34 | H11: 75.56 | I11: 2 | J11: 是
A12: 9 | B12: 陈冲 | C12: 202530100716 | D12: 播州区三合镇中心卫生院 | E12: 大学生村医202510129 | F12: 107.77 | G12: 79.54 | H12: 74.92 | I12: 3 | J12: 是
A13: 10 | B13: 管庆伟 | C13: 202530100920 | D13: 播州区三合镇中心卫生院 | E13: 大学生村医202510129 | F13: 105.32 | G13: 81.74 | H13: 74.82 | I13: 4 | J13: 是
A14: 11 | B14: 申学霞 | C14: 202530100908 | D14: 播州区三合镇中心卫生院 | E14: 大学生村医202510129 | F14: 103.24 | G14: 83.16 | H14: 74.56 | I14: 5 | J14: 是
A15: 12 | B15: 黄海涛 | C15: 202530100219 | D15: 播州区三合镇中心卫生院 | E15: 大学生村医202510129 | F15: 104.16 | G15: 79.18 | H15: 73.34 | I15: 6 | J15: 是
A16: 13 | B16: 宋思学 | C16: 202530100505 | D16: 播州区三合镇中心卫生院 | E16: 大学生村医202510129 | F16: 106.77 | G16: 76.40 | H16: 73.27 | I16: 7 | J16: 是
A17: 14 | B17: 黄玉豪 | C17: 202530100801 | D17: 播州区三合镇中心卫生院 | E17: 大学生村医202510129 | F17: 102.04 | G17: 79.82 | H17: 72.74 | I17: 8 | J17: 否
A18: 15 | B18: 蓬梅 | C18: 202530100625 | D18: 播州区三合镇中心卫生院 | E18: 大学生村医202510129 | F18: 104.95 | G18: 76.48 | H18: 72.57 | I18: 9 | J18: 否
A19: 16 | B19: 袁晓柔 | C19: 202530100710 | D19: 播州区三合镇中心卫生院 | E19: 大学生村医202510129 | F19: 101.90 | G19: 78.20 | H19: 72.04 | I19: 10 | J19: 否
A20: 17 | B20: 李涛 | C20: 202530100401 | D20: 播州区三合镇中心卫生院 | E20: 大学生村医202510129 | F20: 94.52 | G20: 82.12 | H20: 70.66 | I20: 11 | J20: 否
A21: 18 | B21: 陈楠松 | C21: 202530100703 | D21: 播州区三合镇中心卫生院 | E21: 大学生村医202510129 | F21: 89.56 | G21: 84.64 | H21: 69.68 | I21: 12 | J21: 否
A22: 19 | B22: 田园艺 | C22: 202530100203 | D22: 播州区三合镇中心卫生院 | E22: 大学生村医202510129 | F22: 89.73 | G22: 81.94 | H22: 68.67 | I22: 13 | J22: 否
A23: 20 | B23: 白菓 | C23: 202530100825 | D23: 播州区三合镇中心卫生院 | E23: 大学生村医202510129 | F23: 94.18 | G23: 74.90 | H23: 67.63 | I23: 14 | J23: 否
A24: 21 | B24: 罗阿艳 | C24: 202530100803 | D24: 播州区三合镇中心卫生院 | E24: 大学生村医202510129 | F24: 91.19 | G24: 75.58 | H24: 66.71 | I24: 15 | J24: 否
A25: 22 | B25: 王林飞 | C25: 202530100311 | D25: 播州区三合镇中心卫生院 | E25: 大学生村医202510129 | F25: 93.04 | G25: 71.36 | H25: 65.76 | I25: 16 | J25: 否
A26: 23 | B26: 赵静 | C26: 202530100501 | D26: 播州区三合镇中心卫生院 | E26: 大学生村医202510129 | F26: 90.64 | G26: 73.52 | H26: 65.66 | I26: 17 | J26: 否
A27: 24 | B27: 郑磊 | C27: 202530100609 | D27: 播州区三合镇中心卫生院 | E27: 大学生村医202510129 | F27: 89.24 | G27: 60.92 | H27: - | I27: - | J27: 否
A28: 25 | B28: 周小丽 | C28: 202530100524 | D28: 播州区三合镇中心卫生院 | E28: 大学生村医202510129 | F28: 99.72 | G28: 0 | H28: - | I28: - | J28: 否
A29: 26 | B29: 黄蕾 | C29: 202530100323 | D29: 播州区三合镇中心卫生院 | E29: 大学生村医202510129 | F29: 96.39 | G29: 0 | H29: - | I29: - | J29: 否
A30: 27 | B30: 郑位玉 | C30: 202530100629 | D30: 播州区三合镇中心卫生院 | E30: 大学生村医202510129 | F30: 95.22 | G30: 0 | H30: - | I30: - | J30: 否
A31: 28 | B31: 甘创 | C31: 202530100513 | D31: 播州区泮水镇中心卫生院 | E31: 大学生村医202510127 | F31: 100.45 | G31: 83.72 | H31: 73.67 | I31: 1 | J31: 是
A32: 29 | B32: 谭颖之 | C32: 202530100707 | D32: 播州区泮水镇中心卫生院 | E32: 大学生村医202510127 | F32: 91.08 | G32: 79.50 | H32: 68.23 | I32: 2 | J32: 是
A33: 30 | B33: 李会玲 | C33: 202530100215 | D33: 播州区泮水镇中心卫生院 | E33: 大学生村医202510127 | F33: 87.91 | G33: 76.92 | H33: 65.93 | I33: 3 | J33: 否
A34: 31 | B34: 刘福涛 | C34: 202530100820 | D34: 播州区泮水镇中心卫生院 | E34: 大学生村医202510127 | F34: 86.57 | G34: 78.14 | H34: 65.88 | I34: 4 | J34: 否
A35: 32 | B35: 申林芳 | C35: 202530100810 | D35: 播州区泮水镇中心卫生院 | E35: 大学生村医202510127 | F35: 72.60 | G35: 74.72 | H35: 58.93 | I35: 5 | J35: 否
A36: 33 | B36: 孙中悦 | C36: 202530100123 | D36: 播州区三岔镇卫生院 | E36: 大学生村医202510119 | F36: 106.40 | G36: 84.42 | H36: 76.33 | I36: 1 | J36: 是
A37: 34 | B37: 陈元丽 | C37: 202530100417 | D37: 播州区三岔镇卫生院 | E37: 大学生村医202510119 | F37: 103.57 | G37: 84.84 | H37: 75.36 | I37: 2 | J37: 否
A38: 35 | B38: 王庆伟 | C38: 202530100705 | D38: 播州区三岔镇卫生院 | E38: 大学生村医202510119 | F38: 89.39 | G38: 78.80 | H38: 67.28 | I38: 3 | J38: 否
A39: 36 | B39: 陈星合 | C39: 202530100814 | D39: 播州区尚嵇镇卫生院 | E39: 大学生村医202510130 | F39: 99.25 | G39: 77.48 | H39: 70.69 | I39: 1 | J39: 是
A40: 37 | B40: 谢念 | C40: 202530100509 | D40: 播州区尚嵇镇卫生院 | E40: 大学生村医202510130 | F40: 96.53 | G40: 77.76 | H40: 69.72 | I40: 2 | J40: 是
A41: 38 | B41: 李艳 | C41: 202530100126 | D41: 播州区尚嵇镇卫生院 | E41: 大学生村医202510130 | F41: 94.53 | G41: 77.18 | H41: 68.68 | I41: 3 | J41: 是
A42: 39 | B42: 陈玉洁 | C42: 202530100424 | D42: 播州区尚嵇镇卫生院 | E42: 大学生村医202510130 | F42: 87.27 | G42: 76.86 | H42: 65.65 | I42: 4 | J42: 否
A43: 40 | B43: 罗佳顺 | C43: 202530100901 | D43: 播州区尚嵇镇卫生院 | E43: 大学生村医202510130 | F43: 80.05 | G43: 75.58 | H43: =F43/1.5*0.6+G43*0.4 -> 62.25 | I43: 5 | J43: 否
A44: 41 | B44: 李恩同 | C44: 202530100610 | D44: 播州区尚嵇镇卫生院 | E44: 大学生村医202510130 | F44: 91.85 | G44: 67.34 | H44: - | I44: - | J44: 否
A45: 42 | B45: 杨萱 | C45: 202530100201 | D45: 播州区石板镇卫生院 | E45: 大学生村医202510124 | F45: 98.18 | G45: 85.52 | H45: =F45/1.5*0.6+G45*0.4 -> 73.48 | I45: 1 | J45: 是
A46: 43 | B46: 帅俊威 | C46: 202530100209 | D46: 播州区石板镇卫生院 | E46: 大学生村医202510124 | F46: 105.10 | G46: 77.10 | H46: =F46/1.5*0.6+G46*0.4 -> 72.88 | I46: 2 | J46: 是
A47: 44 | B47: 毛天林 | C47: 202530100822 | D47: 播州区石板镇卫生院 | E47: 大学生村医202510124 | F47: 83.37 | G47: 75.42 | H47: =F47/1.5*0.6+G47*0.4 -> 63.52 | I47: 3 | J47: 否
A48: 45 | B48: 何坤伟 | C48: 202530100116 | D48: 播州区石板镇卫生院 | E48: 大学生村医202510124 | F48: 76.01 | G48: 0 | H48: - | I48: - | J48: 否
A49: 46 | B49: 向偲银 | C49: 202530100122 | D49: 播州区乌江镇卫生院 | E49: 大学生村医202510120 | F49: 95.91 | G49: 83.86 | H49: =F49/1.5*0.6+G49*0.4 -> 71.91 | I49: 1 | J49: 是
A50: 47 | B50: 周友 | C50: 202530100718 | D50: 播州区乌江镇卫生院 | E50: 大学生村医202510120 | F50: 100.87 | G50: 77.30 | H50: =F50/1.5*0.6+G50*0.4 -> 71.27 | I50: 2 | J50: 是
A51: 48 | B51: 王正吉 | C51: 202530100816 | D51: 播州区乌江镇卫生院 | E51: 大学生村医202510120 | F51: 94.91 | G51: 80.02 | H51: =F51/1.5*0.6+G51*0.4 -> 69.97 | I51: 3 | J51: 否
A52: 49 | B52: 杨新艳 | C52: 202530100827 | D52: 播州区乌江镇卫生院 | E52: 大学生村医202510120 | F52: 91.14 | G52: 78.66 | H52: =F52/1.5*0.6+G52*0.4 -> 67.92 | I52: 4 | J52: 否
A53: 50 | B53: 李勇 | C53: 202530100411 | D53: 播州区乌江镇卫生院 | E53: 大学生村医202510120 | F53: 78.47 | G53: 77.90 | H53: =F53/1.5*0.6+G53*0.4 -> 62.55 | I53: 5 | J53: 否
A54: 51 | B54: 张思燕 | C54: 202530100828 | D54: 播州区乌江镇卫生院 | E54: 大学生村医202510120 | F54: 77.57 | G54: 77.04 | H54: =F54/1.5*0.6+G54*0.4 -> 61.84 | I54: 6 | J54: 否
A55: 52 | B55: 杨雪梅 | C55: 202530100427 | D55: 新蒲新区虾子镇中心卫生院 | E55: 大学生村医202510102 | F55: 97.32 | G55: 76.06 | H55: =F55/1.5*0.6+G55*0.4 -> 69.35 | I55: 1 | J55: 是
A56: 53 | B56: 龚明婵 | C56: 202530100317 | D56: 新蒲新区虾子镇中心卫生院 | E56: 大学生村医202510102 | F56: 96.97 | G56: 76.06 | H56: =F56/1.5*0.6+G56*0.4 -> 69.21 | I56: 2 | J56: 否
A57: 54 | B57: 王永韦 | C57: 202530100221 | D57: 新蒲新区虾子镇中心卫生院 | E57: 大学生村医202510102 | F57: 98.66 | G57: 72.18 | H57: =F57/1.5*0.6+G57*0.4 -> 68.34 | I57: 3 | J57: 否
A58: 55 | B58: 娄润兰 | C58: 202530100919 | D58: 桐梓县芭蕉镇卫生院 | E58: 大学生村医202510105 | F58: 95.41 | G58: 83.10 | H58: =F58/1.5*0.6+G58*0.4 -> 71.40 | I58: 1 | J58: 是
A59: 56 | B59: 郑敏 | C59: 202530100714 | D59: 桐梓县黄莲乡卫生院 | E59: 大学生村医202510106 | F59: 105.26 | G59: 75.30 | H59: =F59/1.5*0.6+G59*0.4 -> 72.22 | I59: 1 | J59: 是
A60: 57 | B60: 安琦 | C60: 202530100324 | D60: 仁怀市合马镇卫生院 | E60: 大学生村医202510116 | F60: 96.77 | G60: 85.40 | H60: =F60/1.5*0.6+G60*0.4 -> 72.87 | I60: 1 | J60: 是
A61: 58 | B61: 姜利容 | C61: 202530100723 | D61: 仁怀市合马镇卫生院 | E61: 大学生村医202510116 | F61: 97.04 | G61: 81.72 | H61: =F61/1.5*0.6+G61*0.4 -> 71.50 | I61: 2 | J61: 否
A62: 59 | B62: 杨京凤 | C62: 202530100527 | D62: 仁怀市合马镇卫生院 | E62: 大学生村医202510116 | F62: 99.45 | G62: 74.59 | H62: =F62/1.5*0.6+G62*0.4 -> 69.62 | I62: 3 | J62: 否
A63: 60 | B63: 陈宗浪 | C63: 202530100724 | D63: 仁怀市火石镇卫生院 | E63: 大学生村医202510117 | F63: 94.36 | G63: 71.92 | H63: =F63/1.5*0.6+G63*0.4 -> 66.51 | I63: 1 | J63: 是
A64: 61 | B64: 王福来 | C64: 202530100511 | D64: 仁怀市火石镇卫生院 | E64: 大学生村医202510117 | F64: 89.27 | G64: 66.44 | H64: - | I64: - | J64: 否
A65: 62 | B65: 黄仕茜 | C65: 202530100223 | D65: 仁怀市火石镇卫生院 | E65: 大学生村医202510117 | F65: 99.53 | G65: 0 | H65: - | I65: - | J65: 否
A66: 63 | B66: 陈婷婷 | C66: 202530100111 | D66: 仁怀市后山乡卫生院 | E66: 大学生村医202510118 | F66: 96.86 | G66: 72.32 | H66: =F66/1.5*0.6+G66*0.4 -> 67.67 | I66: 1 | J66: 是
A67: 64 | B67: 周云 | C67: 202530100809 | D67: 仁怀市后山乡卫生院 | E67: 大学生村医202510118 | F67: 92.28 | G67: 76.72 | H67: =F67/1.5*0.6+G67*0.4 -> 67.60 | I67: 2 | J67: 否
A68: 65 | B68: 张娜娜 | C68: 202530100314 | D68: 仁怀市后山乡卫生院 | E68: 大学生村医202510118 | F68: 91.54 | G68: 71.48 | H68: =F68/1.5*0.6+G68*0.4 -> 65.21 | I68: 3 | J68: 否
A69: 66 | B69: 商朝会 | C69: 202530100722 | D69: 赤水市旺隆中心卫生院 | E69: 大学生村医202510107 | F69: 90.22 | G69: 79.42 | H69: =F69/1.5*0.6+G69*0.4 -> 67.86 | I69: 1 | J69: 是
A70: 67 | B70: 袁涞 | C70: 202530100405 | D70: 赤水市旺隆中心卫生院 | E70: 大学生村医202510107 | F70: 89.89 | G70: 75.70 | H70: =F70/1.5*0.6+G70*0.4 -> 66.24 | I70: 2 | J70: 否
A71: 68 | B71: 徐铸柱 | C71: 202530100512 | D71: 赤水市旺隆中心卫生院 | E71: 大学生村医202510107 | F71: 80.87 | G71: 71.55 | H71: =F71/1.5*0.6+G71*0.4 -> 60.97 | I71: 3 | J71: 否
A72: 69 | B72: 李涛 | C72: 202530100517 | D72: 赤水市长沙中心卫生院 | E72: 大学生村医202510108 | F72: 96.79 | G72: 76.22 | H72: =F72/1.5*0.6+G72*0.4 -> 69.20 | I72: 1 | J72: 是
A73: 70 | B73: 陶福银 | C73: 202530100725 | D73: 赤水市长沙中心卫生院 | E73: 大学生村医202510108 | F73: 84.25 | G73: 72.92 | H73: =F73/1.5*0.6+G73*0.4 -> 62.87 | I73: 2 | J73: 是
A74: 71 | B74: 胡建伟 | C74: 202530100515 | D74: 赤水市长沙中心卫生院 | E74: 大学生村医202510108 | F74: 103.68 | G74: 67.76 | H74: - | I74: - | J74: 否
A75: 72 | B75: 夏功劭 | C75: 202530100212 | D75: 赤水市元厚中心卫生院 | E75: 大学生村医202510109 | F75: 104.04 | G75: 77.92 | H75: =F75/1.5*0.6+G75*0.4 -> 72.78 | I75: 1 | J75: 是
A76: 73 | B76: 陈艳 | C76: 202530100721 | D76: 习水县杉王街道社区卫生服中心 | E76: 大学生村医202510131 | F76: 103.49 | G76: 85.90 | H76: 75.76 | I76: 1 | J76: 是
A77: 74 | B77: 蔡易林 | C77: 202530100413 | D77: 习水县杉王街道社区卫生服中心 | E77: 大学生村医202510131 | F77: 96.24 | G77: 84.28 | H77: 72.21 | I77: 2 | J77: 否
A78: 75 | B78: 吕玉玲 | C78: 202530100914 | D78: 习水县杉王街道社区卫生服中心 | E78: 大学生村医202510131 | F78: 101.38 | G78: 0 | H78: - | I78: - | J78: 否
A79: 76 | B79: 何秋雪 | C79: 202530100701 | D79: 习水县九龙街道社区卫生服中心 | E79: 大学生村医202510132 | F79: 97.41 | G79: 83.96 | H79: 72.55 | I79: 1 | J79: 是
A80: 77 | B80: 卢桥 | C80: 202530100815 | D80: 习水县九龙街道社区卫生服中心 | E80: 大学生村医202510132 | F80: 67.36 | G80: 80.48 | H80: 59.14 | I80: 2 | J80: 否
A81: 78 | B81: 袁一平 | C81: 202530100109 | D81: 习水县坭坝乡卫生院 | E81: 大学生村医202510133 | F81: 85.06 | G81: 80.18 | H81: 66.10 | I81: 1 | J81: 是
A82: 79 | B82: 王丁 | C82: 202530100301 | D82: 习水县双龙乡卫生院 | E82: 大学生村医202510134 | F82: 93.91 | G82: 84.92 | H82: 71.53 | I82: 1 | J82: 是
A83: 80 | B83: 徐茂 | C83: 202530100102 | D83: 习水县双龙乡卫生院 | E83: 大学生村医202510134 | F83: 83.66 | G83: 84.72 | H83: 67.35 | I83: 2 | J83: 是
A84: 81 | B84: 刘凯旋 | C84: 202530100617 | D84: 习水县双龙乡卫生院 | E84: 大学生村医202510134 | F84: 68.85 | G84: 78.78 | H84: 59.05 | I84: 3 | J84: 否
A85: 82 | B85: 王子怡 | C85: 202530100428 | D85: 习水县二郎镇卫生院 | E85: 大学生村医202510136 | F85: 103.28 | G85: 84.02 | H85: 74.92 | I85: 1 | J85: 是
A86: 83 | B86: 夏署 | C86: 202530100903 | D86: 习水县桃林镇卫生院 | E86: 大学生村医202510138 | F86: 94.69 | G86: 82.48 | H86: 70.87 | I86: 1 | J86: 是
A87: 84 | B87: 金泊庄 | C87: 202530100606 | D87: 习水县桃林镇卫生院 | E87: 大学生村医202510138 | F87: 75.08 | G87: 80.80 | H87: 62.35 | I87: 2 | J87: 是
A88: 85 | B88: 倪旭 | C88: 202530100603 | D88: 习水县温水镇卫生院 | E88: 大学生村医202510140 | F88: 92.31 | G88: 82.44 | H88: 69.90 | I88: 1 | J88: 是
A89: 86 | B89: 穆建 | C89: 202530100905 | D89: 习水县温水镇卫生院 | E89: 大学生村医202510140 | F89: 72.93 | G89: 76.22 | H89: 59.66 | I89: 2 | J89: 是
A90: 87 | B90: 刘帅 | C90: 202530100823 | D90: 习水县温水镇卫生院 | E90: 大学生村医202510140 | F90: 99.74 | G90: 0 | H90: - | I90: - | J90: 否
A91: 88 | B91: 陈圆圆 | C91: 202530100106 | D91: 习水县桑木镇卫生院 | E91: 大学生村医202510141 | F91: 89.03 | G91: 84.22 | H91: 69.30 | I91: 1 | J91: 是
A92: 89 | B92: 任慧颖 | C92: 202530100909 | D92: 习水县桑木镇卫生院 | E92: 大学生村医202510141 | F92: 74.81 | G92: 81.98 | H92: 62.72 | I92: 2 | J92: 是
A93: 90 | B93: 唐伟 | C93: 202530100523 | D93: 习水县程寨镇卫生院 | E93: 大学生村医202510142 | F93: 83.75 | G93: 78.68 | H93: 64.97 | I93: 1 | J93: 是
A94: 91 | B94: 王杏林 | C94: 202530100202 | D94: 习水县仙源镇卫生院 | E94: 大学生村医202510144 | F94: 88.29 | G94: 83.20 | H94: 68.60 | I94: 1 | J94: 是
A95: 92 | B95: 钟旋双 | C95: 202530100208 | D95: 习水县二里镇卫生院 | E95: 大学生村医202510145 | F95: 102.13 | G95: 84.44 | H95: 74.63 | I95: 1 | J95: 是
A96: 93 | B96: 孙克 | C96: 202530100805 | D96: 习水县二里镇卫生院 | E96: 大学生村医202510145 | F96: 82.61 | G96: 83.24 | H96: 66.34 | I96: 2 | J96: 是
A97: 94 | B97: 周瑶 | C97: 202530100410 | D97: 习水县回龙镇卫生院 | E97: 大学生村医202510146 | F97: 95.64 | G97: 77.74 | H97: 69.35 | I97: 1 | J97: 是
A98: 95 | B98: 罗灿 | C98: 202530100402 | D98: 习水县良村镇卫生院 | E98: 大学生村医202510147 | F98: 92.98 | G98: 85.36 | H98: 71.34 | I98: 1 | J98: 是
A99: 96 | B99: 王钊 | C99: 202530100220 | D99: 习水县民化镇卫生院 | E99: 大学生村医202510148 | F99: 85.52 | G99: 81.96 | H99: 66.99 | I99: 1 | J99: 是
A100: 97 | B100: 史洪康 | C100: 202530100115 | D100: 习水县土城镇卫生院 | E100: 大学生村医202510149 | F100: 94.03 | G100: 83.42 | H100: 70.98 | I100: 1 | J100: 是
A101: 98 | B101: 邓涪昭 | C101: 202530100425 | D101: 习水县土城镇卫生院 | E101: 大学生村医202510149 | F101: 86.92 | G101: 84.60 | H101: 68.61 | I101: 2 | J101: 是
A102: 99 | B102: 杨兴露 | C102: 202530100326 | D102: 习水县习酒镇卫生院 | E102: 大学生村医202510150 | F102: 96.27 | G102: 85.94 | H102: 72.88 | I102: 1 | J102: 是
A103: 100 | B103: 吴雄 | C103: 202530100406 | D103: 习水县醒民镇卫生院 | E103: 大学生村医202510153 | F103: 80.75 | G103: 79.60 | H103: 64.14 | I103: 1 | J103: 是
A104: 101 | B104: 胡遥 | C104: 202530100420 | D104: 湄潭县天城镇卫生院 | E104: 大学生村医202510154 | F104: 95.41 | G104: 82.94 | H104: 71.34 | I104: 1 | J104: 是
A105: 102 | B105: 马金 | C105: 202530100616 | D105: 湄潭县天城镇卫生院 | E105: 大学生村医202510154 | F105: 91.53 | G105: 83.69 | H105: 70.09 | I105: 2 | J105: 否
A106: 103 | B106: 邓晓瀚 | C106: 202530100728 | D106: 湄潭县石莲镇卫生院 | E106: 大学生村医202510160 | F106: 92.51 | G106: 87.80 | H106: 72.12 | I106: 1 | J106: 是
A107: 104 | B107: 李桃洋 | C107: 202530100729 | D107: 湄潭县石莲镇卫生院 | E107: 大学生村医202510160 | F107: 93.20 | G107: 72.40 | H107: 66.24 | I107: 2 | J107: 否
A108: 105 | B108: 钟江林 | C108: 202530100804 | D108: 湄潭县洗马镇卫生院 | E108: 大学生村医202510155 | F108: 104.10 | G108: 78.94 | H108: 73.22 | I108: 1 | J108: 是
A109: 106 | B109: 刘先燕 | C109: 202530100619 | D109: 湄潭县洗马镇卫生院 | E109: 大学生村医202510155 | F109: 93.88 | G109: 85.24 | H109: 71.65 | I109: 2 | J109: 否
A110: 107 | B110: 付裕 | C110: 202530100303 | D110: 湄潭县洗马镇卫生院 | E110: 大学生村医202510155 | F110: 95.16 | G110: 82.90 | H110: 71.22 | I110: 3 | J110: 否
A111: 108 | B111: 陈光新 | C111: 202530100529 | D111: 湄潭县新南镇卫生院 | E111: 大学生村医202510157 | F111: 86.26 | G111: 84.16 | H111: 68.17 | I111: 1 | J111: 是
A112: 109 | B112: 杨玲旭 | C112: 202530100415 | D112: 湄潭县新南镇卫生院 | E112: 大学生村医202510157 | F112: 88.53 | G112: 76.02 | H112: 65.82 | I112: 2 | J112: 否
A113: 110 | B113: 李佳逊 | C113: 202530100612 | D113: 湄潭县兴隆镇卫生院 | E113: 大学生村医202510158 | F113: 106.92 | G113: 77.22 | H113: 73.66 | I113: 1 | J113: 是
A114: 111 | B114: 廖开霞 | C114: 202530100826 | D114: 湄潭县兴隆镇卫生院 | E114: 大学生村医202510158 | F114: 102.25 | G114: 77.05 | H114: 71.72 | I114: 2 | J114: 否
A115: 112 | B115: 肖静寰 | C115: 202530100904 | D115: 湄潭县兴隆镇卫生院 | E115: 大学生村医202510158 | F115: 104.57 | G115: 0 | H115: - | I115: - | J115: 否
A116: 113 | B116: 陈广霞 | C116: 202530100605 | D116: 湄潭县永兴镇卫生院 | E116: 大学生村医202510159 | F116: 101.09 | G116: 86.60 | H116: 75.08 | I116: 1 | J116: 是
A117: 114 | B117: 谯一飞 | C117: 202530100204 | D117: 湄潭县永兴镇卫生院 | E117: 大学生村医202510159 | F117: 97.81 | G117: 86.42 | H117: 73.69 | I117: 2 | J117: 否
A118: 115 | B118: 黎露群 | C118: 202530100308 | D118: 湄潭县永兴镇卫生院 | E118: 大学生村医202510159 | F118: 98.73 | G118: 73.58 | H118: 68.92 | I118: 3 | J118: 否
A119: 116 | B119: 吴锦涛 | C119: 202530100808 | D119: 余庆县龙溪中心卫生院 | E119: 大学生村医202510110 | F119: 116.31 | G119: 86.40 | H119: 81.08 | I119: 1 | J119: 是
A120: 117 | B120: 王徐芳 | C120: 202530100407 | D120: 余庆县龙溪中心卫生院 | E120: 大学生村医202510110 | F120: 95.51 | G120: 86.46 | H120: 72.79 | I120: 2 | J120: 否
A121: 118 | B121: 刘寒少 | C121: 202530100318 | D121: 余庆县龙溪中心卫生院 | E121: 大学生村医202510110 | F121: 72.99 | G121: 77.75 | H121: 60.30 | I121: 3 | J121: 否
A122: 119 | B122: 穆杨 | C122: 202530100101 | D122: 余庆县构皮滩中心卫生院 | E122: 大学生村医202510111 | F122: 91.75 | G122: 79.38 | H122: 68.45 | I122: 1 | J122: 是
A123: 120 | B123: 张芳 | C123: 202530100917 | D123: 余庆县构皮滩中心卫生院 | E123: 大学生村医202510111 | F123: 102.41 | G123: 0 | H123: - | I123: - | J123: 否
A124: 121 | B124: 王昌肖 | C124: 202530100114 | D124: 余庆县大乌江镇卫生院 | E124: 大学生村医202510112 | F124: 94.08 | G124: 81.77 | H124: 70.34 | I124: 1 | J124: 是
A125: 122 | B125: 刘忠琴 | C125: 202530100119 | D125: 余庆县大乌江镇卫生院 | E125: 大学生村医202510112 | F125: 83.75 | G125: 82.73 | H125: 66.59 | I125: 2 | J125: 是
A126: 123 | B126: 何晶晶 | C126: 202530100622 | D126: 余庆县敖溪中心卫生院 | E126: 大学生村医202510113 | F126: 84.98 | G126: 79.38 | H126: 65.74 | I126: 1 | J126: 是
A127: 124 | B127: 李黔松 | C127: 202530100607 | D127: 余庆县敖溪中心卫生院 | E127: 大学生村医202510113 | F127: 88.65 | G127: 74.58 | H127: 65.29 | I127: 2 | J127: 是
A128: 125 | B128: 何炫宏 | C128: 202530100315 | D128: 余庆县龙家镇卫生院 | E128: 大学生村医202510114 | F128: 95.31 | G128: 81.84 | H128: 70.86 | I128: 1 | J128: 是
A129: 126 | B129: 柴发林 | C129: 202530100526 | D129: 余庆县龙家镇卫生院 | E129: 大学生村医202510114 | F129: 83.25 | G129: 81.48 | H129: 65.89 | I129: 2 | J129: 是
A130: 127 | B130: 陈云霞 | C130: 202530100522 | D130: 余庆县松烟中心卫生院 | E130: 大学生村医202510115 | F130: 94.85 | G130: 77.18 | H130: 68.81 | I130: 1 | J130: 是
A131: 128 | B131: 袁玉恒 | C131: 202530100911 | D131: 余庆县松烟中心卫生院 | E131: 大学生村医202510115 | F131: 87.39 | G131: 82.50 | H131: 67.96 | I131: 2 | J131: 是
A132: 129 | B132: 谢源 | C132: 202530100302 | D132: 余庆县松烟中心卫生院 | E132: 大学生村医202510115 | F132: 87.00 | G132: 77.56 | H132: =F132/1.5*0.6+G132*0.4 -> 65.82 | I132: 3 | J132: 否
A133: 注：1.面试成绩为“0”代表“缺考”或“违纪”； 2.面试设最低合格分数线为70分，未参加面试或未取得有效成绩或面试成绩低于最低合格分数线的取消进入下一环节资格。

Sheet Sheet2

Sheet Sheet3
